bitfinex/quotes_BTCUSD_20250512
["timestamp","ask_amount","ask_price","bid_price","bid_amount"]
[1747019624759,0.27001505,103850.0,103840.0,0.44697022]
[1747019626717,0.27001505,103850.0,103840.0,0.45660032]
[1747019627149,0.27001505,103850.0,103840.0,0.51438152]
[1747019628264,0.27001505,103850.0,103840.0,0.52401153]
[1747019630935,0.27001505,103850.0,103840.0,0.77824433]
[1747019631153,0.06780014,103850.0,103840.0,0.78787415]
[1747019631431,0.02587134,103850.0,103840.0,0.7878735]
[1747019631649,0.03549996,103850.0,103840.0,0.7878735]
[1747019632053,0.04512867,103850.0,103840.0,0.7878735]
[1747019632795,0.04512876,103850.0,103840.0,0.7878735]
[1747019633631,0.02587134,103850.0,103840.0,0.8190735]
[1747019634615,0.02587134,103850.0,103840.0,0.9149278]
[1747019635343,0.02587134,103850.0,103840.0,1.6549278]
[1747019637101,0.03549977,103850.0,103840.0,1.6549278]
[1747019637288,0.02587134,103850.0,103840.0,1.6549278]
[1747019640163,0.02587134,103850.0,103840.0,1.7683678]
[1747019641113,0.02587134,103850.0,103840.0,1.7371678]
[1747019641325,0.04512848,103850.0,103840.0,1.7371678]
[1747019641496,0.08555738,103850.0,103840.0,1.7371678]
[1747019641694,0.07592848,103850.0,103840.0,1.7371678]
[1747019641841,0.08555738,103850.0,103840.0,1.7371678]
[1747019642050,0.07592848,103850.0,103840.0,1.7371678]
[1747019644588,0.08555728,103850.0,103840.0,1.48293537]
[1747019644791,0.08555728,103850.0,103840.0,0.89512122]
[1747019644792,0.27814338,103850.0,103840.0,0.89512122]
[1747019645029,0.08555793,103850.0,103840.0,1.26401088]
[1747019645194,0.09662741,103850.0,103840.0,1.51824331]
[1747019645695,0.10625668,103850.0,103840.0,1.51824331]
[1747019646838,0.29884213,103850.0,103840.0,1.50861376]
[1747019647038,0.28777312,103850.0,103840.0,1.50861376]
[1747019649765,0.28777312,103850.0,103840.0,1.25438124]
[1747019649968,0.27814432,103850.0,103840.0,1.49898421]
[1747019650204,0.27814432,103850.0,103840.0,1.50861413]
[1747019650434,0.26851524,103850.0,103840.0,1.24475123]
[1747019650873,0.26851524,103850.0,103840.0,0.37353702]
[1747019650874,0.25888606,103850.0,103840.0,0.37353702]
[1747019651417,0.25888606,103850.0,103840.0,0.38316722]
[1747019651824,0.25888606,103850.0,103840.0,0.76621152]
[1747019652032,0.37224606,103850.0,103840.0,0.94606181]
[1747019652590,0.2685143,103850.0,103840.0,1.10665236]
[1747019652796,0.08555784,103850.0,103840.0,1.11628191]
[1747019653002,0.07592848,103850.0,103840.0,1.11628191]
[1747019653199,0.09518627,103850.0,103840.0,1.11628191]
[1747019653456,0.09518627,103850.0,103840.0,1.03971006]
[1747019654009,0.10481535,103850.0,103840.0,1.03971006]
[1747019654859,0.09518627,103850.0,103840.0,1.43971006]
[1747019655250,0.10481535,103850.0,103840.0,1.43971006]
[1747019657035,0.07401535,103850.0,103840.0,1.43971006]
[1747019661099,0.0740161,103850.0,103840.0,1.43971006]
[1747019662587,0.03549977,103850.0,103840.0,1.43971006]
[1747019662807,0.04512848,103850.0,103840.0,1.43971006]
[1747019663038,0.03549977,103850.0,103840.0,1.43971006]
[1747019663254,0.04512848,103850.0,103840.0,1.45561006]
[1747019663465,0.0547571,103850.0,103840.0,1.55146436]
[1747019663687,0.05475701,103850.0,103840.0,1.55146436]
[1747019663909,0.02587134,103850.0,103840.0,1.56686436]
[1747019664132,0.02587134,103850.0,103840.0,1.32225511]
[1747019664353,0.03549977,103850.0,103840.0,1.56686436]
[1747019664646,0.02587134,103850.0,103840.0,1.56686436]
[1747019665307,0.02587134,103850.0,103840.0,1.56786436]
[1747019665766,0.02587134,103850.0,103840.0,1.56986436]
[1747019667899,0.02587134,103850.0,103840.0,1.40479896]
[1747019668360,0.02587134,103850.0,103840.0,1.43344954]
[1747019670063,0.02587134,103850.0,103840.0,1.20915519]
[1747019670265,0.02587134,103850.0,103840.0,0.95877614]
[1747019670491,0.02587134,103850.0,103840.0,1.18748539]
[1747019672122,0.02587134,103850.0,103840.0,1.52748539]
[1747019672919,0.03549977,103850.0,103840.0,1.52748539]
[1747019673345,0.02587134,103850.0,103840.0,1.603929]
[1747019674476,0.03549987,103850.0,103840.0,1.603929]
[1747019675066,0.03549977,103850.0,103840.0,1.603929]
[1747019675283,0.04512839,103850.0,103840.0,1.603929]
[1747019675926,0.04512839,103850.0,103840.0,1.44340257]
[1747019675927,0.0877571,103850.0,103840.0,1.44340257]
[1747019676487,0.04512848,103850.0,103840.0,1.44340257]
[1747019677113,0.06152848,103850.0,103840.0,1.44340257]
[1747019677399,0.06152848,103850.0,103840.0,1.603929]
[1747019677855,0.06152839,103850.0,103840.0,1.603929]
[1747019678263,0.07115719,103850.0,103840.0,1.603929]
[1747019678764,0.0711571,103850.0,103840.0,1.603929]
[1747019679488,0.0863571,103850.0,103840.0,1.603929]
[1747019681587,0.095986,103850.0,103840.0,1.603929]
[1747019681792,0.0863571,103850.0,103840.0,1.603929]
[1747019682008,0.288572,103850.0,103840.0,1.27324659]
[1747019682174,0.09598655,103850.0,103840.0,1.44340257]
[1747019682368,0.09598646,103850.0,103840.0,1.44340257]
[1747019682580,0.08635747,103850.0,103840.0,1.44340257]
[1747019682861,0.29001221,103850.0,103840.0,0.34728358]
[1747019683059,0.26931486,103850.0,103840.0,0.13288058]
[1747019683277,0.26931486,103850.0,103840.0,0.14251068]
[1747019683485,0.26931486,103850.0,103840.0,0.30303711]
[1747019684002,0.25968587,103850.0,103840.0,0.14251068]
[1747019684469,0.25005679,103850.0,103840.0,0.13288058]
[1747019684709,0.25005679,103850.0,103840.0,0.23923858]
[1747019687013,0.25005679,103850.0,103840.0,0.63923858]
[1747019688277,0.25005679,103850.0,103840.0,0.79976501]
[1747019689993,0.25005679,103850.0,103840.0,0.39976501]
[1747019690391,0.25005679,103850.0,103840.0,0.79976501]
[1747019693524,0.25005679,103850.0,103840.0,0.39976501]
[1747019694118,0.25005679,103850.0,103840.0,0.79976501]
[1747019695609,0.25005679,103850.0,103840.0,0.85754621]
[1747019695904,0.25005679,103850.0,103840.0,0.86717641]
[1747019696709,0.25005679,103850.0,103840.0,0.87680651]
[1747019696900,0.25005679,103850.0,103840.0,0.79976501]
[1747019697303,0.25005679,103850.0,103840.0,0.87680651]
[1747019697502,0.25005679,103850.0,103840.0,0.80939521]
[1747019697946,0.25005679,103850.0,103840.0,0.79976501]
[1747019699105,0.25005679,103850.0,103840.0,0.80939521]
[1747019700398,0.05747134,103850.0,103840.0,1.05659231]
[1747019700618,0.04512913,103850.0,103840.0,1.39659231]
[1747019700866,0.05475766,103850.0,103840.0,1.39659231]
[1747019701043,0.04512858,103850.0,103840.0,1.39659231]
[1747019701915,0.02587134,103850.0,103840.0,1.50794661]
[1747019702131,0.02587134,103850.0,103840.0,1.52404661]
[1747019703626,0.02587134,103850.0,103840.0,1.33747103]
[1747019703808,0.02163958,103850.0,103840.0,1.33747103]
[1747019705068,0.04089682,103850.0,103840.0,1.21001673]
[1747019705309,0.05052581,103850.0,103840.0,1.07862715]
[1747019705513,0.07259682,103850.0,103840.0,1.07862715]
[1747019705830,0.0918548,103850.0,103840.0,1.07862715]
[1747019706005,0.08222572,103850.0,103840.0,1.07862715]
[1747019706429,0.0918548,103850.0,103840.0,1.07862715]
[1747019707863,0.27481117,103850.0,103840.0,1.0689976]
[1747019708084,0.27481219,103850.0,103840.0,0.90847136]
[1747019708321,0.08222674,103850.0,103840.0,1.08825725]
[1747019708551,0.08366704,103850.0,103840.0,1.08825725]
[1747019708904,0.27625249,103850.0,103840.0,1.08825725]
[1747019709141,0.27481219,103850.0,103840.0,1.07862761]
[1747019709735,0.27481219,103850.0,103840.0,0.90847136]
[1747019709963,0.27481219,103850.0,103840.0,0.91810118]
[1747019710196,0.27481219,103850.0,103840.0,1.08825734]
[1747019713089,0.07259747,103850.0,103840.0,1.08825734]
[1747019713324,0.28588157,103850.0,103840.0,1.07862714]
[1747019713555,0.09185582,103850.0,103840.0,1.08825678]
[1747019713731,0.28588157,103850.0,103840.0,1.08825678]
[1747019713984,0.28444127,103850.0,103840.0,1.08825678]
[1747019714607,0.26518338,103850.0,103840.0,1.04010748]
[1747019714834,0.26518338,103850.0,103840.0,1.0593674]
[1747019715234,0.26518338,103850.0,103840.0,1.06899713]
[1747019715439,0.26518338,103850.0,103840.0,1.07862677]
[1747019716597,0.26518338,103850.0,103840.0,1.04973758]
[1747019716822,0.26518338,103850.0,103840.0,1.0593674]
[1747019717846,0.26518338,103850.0,103840.0,1.06899713]
[1747019722196,0.26518338,103850.0,103840.0,1.0593675]
[1747019722913,0.26518338,103850.0,103840.0,1.06899732]
[1747019729761,0.2555543,103850.0,103840.0,1.04973758]
[1747019729977,0.24592503,103850.0,103840.0,1.04973758]
[1747019730177,0.24592503,103850.0,103840.0,1.05936759]
[1747019730402,0.24592503,103850.0,103840.0,1.06899751]
[1747019731881,0.24592503,103850.0,103840.0,1.05936759]
[1747019732282,0.24592503,103850.0,103840.0,1.06899751]
[1747019733325,0.24592503,103850.0,103840.0,1.07862733]
[1747019734369,0.24592503,103850.0,103840.0,1.06899751]
[1747019734937,0.24592503,103850.0,103840.0,0.59707458]
[1747019735205,0.34177933,103850.0,103840.0,0.70546385]
[1747019735443,0.61546576,103850.0,103840.0,0.02913685]
[1747019735670,0.61546576,103850.0,103810.0,0.25684958]
[1747019735671,0.20225349,103830.0,103810.0,0.25684958]
[1747019735911,0.23475349,103830.0,103820.0,0.698485]
[1747019736379,0.23475349,103830.0,103820.0,1.23838337]
[1747019737527,0.23675349,103830.0,103820.0,1.23838337]
[1747019738228,0.23675349,103830.0,103820.0,0.70268094]
[1747019738456,0.23675349,103830.0,103820.0,0.03937194]
[1747019738457,0.33260779,103830.0,103820.0,0.03937194]
[1747019738694,0.20227315,103820.0,103810.0,0.51015941]
[1747019738952,0.23367315,103820.0,103810.0,1.1774738]
[1747019739662,0.23367315,103820.0,103810.0,1.16784082]
[1747019740090,0.23367315,103820.0,103810.0,1.56884082]
[1747019740522,0.23367315,103820.0,103810.0,1.56984082]
[1747019742124,0.23367315,103820.0,103810.0,1.40931439]
[1747019742336,0.23367315,103820.0,103810.0,1.29517682]
[1747019744772,0.23367315,103820.0,103810.0,1.3048098]
[1747019745392,0.23367315,103820.0,103810.0,1.08474364]
[1747019745608,0.23367315,103820.0,103810.0,0.9648098]
[1747019746550,0.23367315,103820.0,103810.0,1.0226077]
[1747019747091,0.04103149,103820.0,103810.0,1.0418732]
[1747019747299,0.02889412,103820.0,103810.0,1.24393196]
[1747019747517,0.03852598,103820.0,103810.0,1.08340553]
[1747019747735,0.03852589,103820.0,103810.0,1.08340553]
[1747019748154,0.04815775,103820.0,103810.0,1.08340553]
[1747019748375,0.02889412,103820.0,103810.0,1.08340553]
[1747019748554,0.03852598,103820.0,103810.0,1.08340553]
[1747019749931,0.03852589,103820.0,103810.0,1.08340553]
[1747019750346,0.04815775,103820.0,103810.0,1.08340553]
[1747019750770,0.02889412,103820.0,103810.0,1.08340553]
[1747019750976,0.03852589,103820.0,103810.0,1.08340553]
[1747019751314,0.03852598,103820.0,103810.0,1.08340553]
[1747019751800,0.02889412,103820.0,103810.0,1.08340553]
[1747019752031,0.03852589,103820.0,103810.0,1.08340553]
[1747019752702,0.04815775,103820.0,103810.0,1.08340553]
[1747019752953,0.00963038,103830.0,103820.0,0.08668737]
[1747019753135,0.01925937,103840.0,103830.0,0.09630976]
[1747019753399,0.19510636,103850.0,103840.0,0.08667096]
[1747019753602,0.38769181,103850.0,103840.0,2.24974936]
[1747019753851,0.3780631,103850.0,103840.0,2.09091236]
[1747019754097,0.3780631,103850.0,103840.0,1.49781093]
[1747019754341,0.36843411,103850.0,103840.0,1.60905263]
[1747019754578,0.36843411,103850.0,103840.0,0.709278]
[1747019754819,0.36843411,103850.0,103840.0,0.4]
[1747019755057,0.2215148,103830.0,103820.0,0.22795081]
[1747019755280,0.2530148,103830.0,103820.0,1.20400785]
[1747019755502,0.02889206,103830.0,103820.0,1.20400785]
[1747019755727,0.02889206,103830.0,103820.0,1.60400785]
[1747019756425,0.02989206,103830.0,103820.0,2.10453428]
[1747019756657,0.03089206,103830.0,103820.0,2.10453428]
[1747019756860,0.02126122,103830.0,103820.0,2.10453428]
[1747019758947,0.02126122,103830.0,103820.0,1.76453428]
[1747019759191,0.072623,103830.0,103820.0,1.95363934]
[1747019759418,0.08225403,103830.0,103820.0,1.95363934]
[1747019759620,0.08225468,103830.0,103820.0,1.95363934]
[1747019759893,0.07262356,103830.0,103820.0,1.95363934]
[1747019760130,0.26524611,103830.0,103820.0,1.94400794]
[1747019760375,0.08225468,103830.0,103820.0,1.63235451]
[1747019760596,0.25705594,103830.0,103820.0,1.59405934]
[1747019760810,0.2459847,103830.0,103820.0,1.31004281]
[1747019761023,0.2459847,103830.0,103820.0,1.32930645]
[1747019761233,0.05336178,103830.0,103820.0,1.33893794]
[1747019761415,0.25705575,103830.0,103820.0,1.31967477]
[1747019761629,0.25561545,103830.0,103820.0,1.32930663]
[1747019761940,0.25561545,103830.0,103820.0,1.2282544]
[1747019762155,0.25561545,103830.0,103820.0,1.2172134]
[1747019763927,0.23635367,103830.0,103820.0,0.74]
[1747019764194,0.22672255,103830.0,103820.0,0.74]
[1747019764455,0.22672255,103830.0,103820.0,0.653609]
[1747019764666,0.22672255,103830.0,103820.0,0.34]
[1747019765104,0.22672255,103830.0,103820.0,0.74]
[1747019765747,0.22672255,103830.0,103820.0,0.856699]
[1747019768596,0.22672255,103830.0,103820.0,0.74]
[1747019769236,0.22672255,103830.0,103820.0,0.840372]
[1747019769869,0.22672255,103830.0,103820.0,0.74]
[1747019770079,0.22672255,103830.0,103820.0,0.9802]
[1747019771139,0.22672255,103830.0,103820.0,1.0163]
[1747019772131,0.22672255,103830.0,103820.0,1.17682643]
[1747019773170,0.19462255,103830.0,103820.0,1.41440883]
[1747019773592,0.19462255,103830.0,103820.0,1.2538824]
[1747019773797,0.21388387,103830.0,103820.0,1.41440883]
[1747019774000,0.03089235,103830.0,103820.0,1.43367172]
[1747019774217,0.03089198,103830.0,103820.0,1.43367172]
[1747019774611,0.04052301,103830.0,103820.0,1.43367172]
[1747019774859,0.22495548,103830.0,103820.0,1.2538824]
[1747019775075,0.25501518,103830.0,103820.0,1.2538824]
[1747019775285,0.24538452,103830.0,103820.0,0.77682643]
[1747019775492,0.23575358,103830.0,103820.0,0.66899]
[1747019775676,0.23575358,103830.0,103820.0,0.82951643]
[1747019776146,0.23575358,103830.0,103820.0,0.83914848]
[1747019779242,0.23575358,103830.0,103820.0,1.23914848]
[1747019780375,0.23575358,103830.0,103820.0,1.29694081]
[1747019780583,0.23575358,103830.0,103820.0,1.30657267]
[1747019781233,0.22612255,103830.0,103820.0,1.30657267]
[1747019782364,0.22612255,103830.0,103820.0,1.29694081]
[1747019783702,0.22612255,103830.0,103820.0,1.13641438]
[1747019783902,0.22612255,103830.0,103820.0,1.29694081]
[1747019784115,0.22612255,103830.0,103820.0,1.30657277]
[1747019786930,0.24538405,103830.0,103820.0,1.30657277]
[1747019787223,0.01163047,103830.0,103820.0,1.49599405]
[1747019787433,0.02126113,103830.0,103820.0,1.52699405]
[1747019787641,0.04052291,103830.0,103820.0,1.52699405]
[1747019788086,0.03089197,103830.0,103820.0,1.52699405]
[1747019788299,0.02126122,103830.0,103820.0,1.52699405]
[1747019788749,0.01163047,103830.0,103820.0,1.52699405]
[1747019788960,0.02126104,103830.0,103820.0,1.52699405]
[1747019790083,0.03089179,103830.0,103820.0,1.52699405]
[1747019790971,0.0308917,103830.0,103820.0,1.52699405]
[1747019791749,0.04052264,103830.0,103820.0,1.52699405]
[1747019792630,0.04052264,103830.0,103820.0,1.51159405]
[1747019792829,0.04052264,103830.0,103820.0,1.33546762]
[1747019793041,0.26604584,103830.0,103820.0,1.32583622]
[1747019793272,0.26604584,103830.0,103820.0,1.33546771]
[1747019793682,0.24678461,103830.0,103820.0,0.66899]
[1747019793885,0.24678461,103830.0,103820.0,0.73641438]
[1747019794111,0.24678461,103830.0,103820.0,0.74604624]
[1747019794327,0.24678461,103830.0,103820.0,1.14604624]
[1747019794511,0.24678461,103830.0,103820.0,1.30657267]
[1747019794752,0.24678461,103830.0,103820.0,1.31620444]
[1747019795334,0.24678461,103830.0,103820.0,1.32583603]
[1747019796460,0.24678461,103830.0,103820.0,1.30095485]
[1747019796701,0.24678461,103830.0,103820.0,1.32021867]
[1747019797765,0.24678461,103830.0,103820.0,1.32985044]
[1747019798732,0.24678461,103830.0,103820.0,1.33948212]
[1747019799496,0.24678461,103830.0,103820.0,1.32985044]
[1747019799708,0.23715367,103830.0,103820.0,1.32021867]
[1747019799905,0.22752255,103830.0,103820.0,1.31058681]
[1747019802852,0.22752255,103830.0,103820.0,1.32021858]
[1747019803070,0.22752255,103830.0,103820.0,1.31058681]
[1747019803685,0.22752255,103830.0,103820.0,1.32021867]
[1747019805956,0.22752255,103830.0,103820.0,1.32985044]
[1747019807277,0.20425349,103830.0,103820.0,1.50000836]
[1747019807482,0.20425349,103830.0,103820.0,1.49037687]
[1747019807656,0.20425349,103830.0,103820.0,1.50000855]
[1747019807810,0.20425349,103830.0,103820.0,1.33948166]
[1747019808895,0.23615349,103830.0,103820.0,1.23353047]
[1747019809106,0.23615349,103830.0,103820.0,1.14042823]
[1747019811141,0.23615349,103830.0,103820.0,1.31058643]
[1747019811343,0.23615349,103830.0,103820.0,1.31460657]
[1747019814984,0.23615349,103830.0,103820.0,1.3049748]
[1747019819293,0.22652255,103830.0,103820.0,1.3049748]
[1747019819511,0.22652255,103830.0,103820.0,1.14444856]
[1747019819723,0.22652255,103830.0,103820.0,0.67702418]
[1747019820345,0.22652255,103830.0,103820.0,1.07702418]
[1747019820639,0.22652255,103830.0,103820.0,0.73702418]
[1747019820844,0.48290328,103830.0,103820.0,0.00803418]
[1747019821059,0.59570328,103830.0,103820.0,0.00803418]
[1747019821264,0.61024413,103830.0,103820.0,0.00803418]
[1747019821834,0.93699676,103830.0,103820.0,0.00803418]
[1747019822034,1.03285106,103830.0,103820.0,0.00401404]
[1747019822247,1.03885106,103830.0,103820.0,0.00401404]
[1747019822648,1.03585106,103830.0,103820.0,0.00884006]
[1747019822882,1.03585106,103830.0,103820.0,0.00401404]
[1747019823082,1.01358046,103830.0,103820.0,0.00984013]
[1747019823259,0.91772616,103830.0,103820.0,0.00984013]
[1747019824088,0.88777056,103830.0,103820.0,0.00984013]
[1747019824664,0.88977056,103830.0,103820.0,0.00984013]
[1747019824871,0.88477056,103830.0,103820.0,0.00984013]
[1747019825104,0.72424413,103830.0,103820.0,0.00984013]
[1747019825323,0.72924413,103830.0,103820.0,0.01084013]
[1747019826617,0.76919817,103830.0,103820.0,0.01084013]
[1747019826877,0.30766581,103810.0,103800.0,0.002]
[1747019827098,0.95021297,103810.0,103800.0,0.002]
[1747019827322,0.96021297,103810.0,103800.0,0.002]
[1747019827536,0.79968654,103810.0,103800.0,0.002]
[1747019827762,1.01021297,103810.0,103800.0,0.002]
[1747019828953,1.01821297,103810.0,103800.0,0.003]
[1747019829152,0.85768654,103810.0,103800.0,0.003]
[1747019829435,0.94220378,103810.0,103800.0,0.003]
[1747019830325,1.03605808,103810.0,103800.0,0.003]
[1747019830536,1.03805808,103810.0,103800.0,0.004]
[1747019832661,0.94220378,103810.0,103800.0,0.00809095]
[1747019832921,0.94220378,103810.0,103800.0,0.004]
[1747019834074,1.50720305,103810.0,103800.0,0.004]
[1747019834328,0.21200667,103770.0,103760.0,0.002]
[1747019834554,0.81000464,103770.0,103760.0,0.00609099]
[1747019834772,0.82454549,103770.0,103760.0,0.002]
[1747019834993,0.82454549,103770.0,103760.0,0.00609117]
[1747019835220,0.82454549,103770.0,103760.0,0.002]
[1747019835438,0.82754549,103770.0,103760.0,0.00709119]
[1747019835637,0.82763878,103770.0,103760.0,0.003]
[1747019835856,0.82763878,103770.0,103760.0,0.00709119]
[1747019836059,0.82763878,103770.0,103760.0,0.004]
[1747019836305,1.85553675,103770.0,103760.0,0.00809119]
[1747019836552,1.83963805,103770.0,103760.0,0.004]
[1747019836754,1.56463878,103770.0,103760.0,0.004]
[1747019836968,1.35879534,103770.0,103760.0,0.004]
[1747019837189,1.31959511,103770.0,103760.0,0.00809134]
[1747019837396,1.31659511,103770.0,103760.0,0.003]
[1747019837647,1.56263878,103770.0,103760.0,0.00709129]
[1747019837862,1.55963878,103770.0,103760.0,0.002]
[1747019838071,1.55963878,103770.0,103760.0,0.00609128]
[1747019838286,1.56263878,103770.0,103760.0,0.002]
[1747019838493,1.56263878,103770.0,103760.0,0.00632253]
[1747019838707,1.56263878,103770.0,103760.0,0.002]
[1747019838915,1.56263878,103770.0,103760.0,0.00632253]
[1747019839295,1.15487511,103770.0,103760.0,0.00632253]
[1747019839496,1.26767511,103770.0,103760.0,0.00632253]
[1747019839954,1.01049511,103770.0,103760.0,0.00632253]
[1747019840158,1.22163426,103770.0,103760.0,0.00632253]
[1747019841301,1.10875426,103770.0,103760.0,0.00632253]
[1747019841503,1.10875426,103770.0,103760.0,0.2676662]
[1747019841741,1.08948152,103770.0,103750.0,0.36603855]
[1747019841909,1.08948152,103770.0,103750.0,0.61108222]
[1747019841910,0.1927525,103760.0,103750.0,0.61108222]
[1747019842121,0.1927525,103760.0,103750.0,1.86884054]
[1747019842122,0.21202727,103760.0,103750.0,1.86884054]
[1747019842355,0.21202727,103760.0,103750.0,1.878479]
[1747019842806,0.21202727,103760.0,103750.0,1.644547]
[1747019843023,0.21202727,103760.0,103750.0,1.560239]
[1747019843669,0.21302727,103760.0,103750.0,1.55060054]
[1747019843816,0.20338993,103760.0,103750.0,1.22235255]
[1747019843978,0.20338993,103760.0,103750.0,1.14763855]
[1747019844194,0.20338993,103760.0,103750.0,0.78919067]
[1747019844406,0.20338993,103760.0,103750.0,0.74763855]
[1747019844611,0.20338993,103760.0,103750.0,1.17307701]
[1747019844811,0.20438993,103760.0,103750.0,1.24054669]
[1747019847167,0.20438993,103760.0,103750.0,1.25018487]
[1747019847349,0.20438993,103760.0,103750.0,1.24054669]
[1747019847771,0.20438993,103760.0,103750.0,1.22474669]
[1747019848023,0.20438993,103760.0,103750.0,1.460152]
[1747019848923,0.20438993,103760.0,103750.0,1.23090833]
[1747019849762,0.20438993,103760.0,103750.0,1.48559027]
[1747019849969,0.20438993,103760.0,103750.0,1.52714239]
[1747019850149,0.20438993,103760.0,103750.0,1.48559027]
[1747019850357,0.20438993,103760.0,103750.0,1.475952]
[1747019851149,0.20438993,103760.0,103750.0,1.48559036]
[1747019851527,0.20438993,103760.0,103750.0,1.08559036]
[1747019854691,0.20438993,103760.0,103750.0,1.10486681]
[1747019854891,0.002,103760.0,103750.0,1.10486616]
[1747019855100,0.03091138,103760.0,103750.0,1.10486616]
[1747019855595,0.03091138,103760.0,103750.0,1.50486616]
[1747019855822,0.03091138,103760.0,103750.0,1.10486616]
[1747019856389,0.03091138,103760.0,103750.0,1.50486616]
[1747019858071,0.02127394,103760.0,103750.0,1.50486616]
[1747019858272,0.01163688,103760.0,103750.0,1.50486616]
[1747019858474,0.002,103760.0,103750.0,1.50486616]
[1747019859057,0.002,103760.0,103750.0,1.60072046]
[1747019859475,0.03863847,103770.0,103760.0,0.0867375]
[1747019859684,0.03863847,103770.0,103760.0,3.23309849]
[1747019859909,0.03863847,103770.0,103760.0,3.02834217]
[1747019860115,0.03863847,103770.0,103760.0,2.78347517]
[1747019860396,0.02900187,103770.0,103760.0,2.56378117]
[1747019860624,0.03963838,103770.0,103760.0,2.56478117]
[1747019861061,0.04063838,103770.0,103760.0,2.56478117]
[1747019861947,0.04063838,103770.0,103760.0,2.54908117]
[1747019862142,0.05027498,103770.0,103760.0,1.97404917]
[1747019862432,0.23337287,103770.0,103760.0,1.59250853]
[1747019862662,0.22930033,103770.0,103760.0,0.341]
[1747019862907,0.24430033,103770.0,103760.0,0.341]
[1747019865822,0.22930033,103770.0,103760.0,0.341]
[1747019866057,0.22930033,103770.0,103760.0,0.40846328]
[1747019866294,0.21966382,103770.0,103760.0,0.341]
[1747019866539,0.20446382,103770.0,103760.0,2.34804295]
[1747019866765,0.20446382,103770.0,103760.0,2.28057967]
[1747019867019,0.20446382,103770.0,103760.0,2.33301295]
[1747019867241,0.20446382,103770.0,103760.0,1.69014362]
[1747019867486,0.20446382,103770.0,103760.0,1.489782]
[1747019867722,0.20446382,103770.0,103760.0,1.226492]
[1747019867943,0.20446382,103770.0,103760.0,1.209329]
[1747019869059,0.20446382,103770.0,103760.0,1.26715475]
[1747019869272,0.20446382,103770.0,103760.0,1.57321063]
[1747019869508,0.00209329,103770.0,103760.0,1.5828476]
[1747019869733,0.01172989,103770.0,103760.0,1.5828476]
[1747019870162,0.00209329,103770.0,103760.0,1.9228476]
[1747019870382,0.00209329,103770.0,103760.0,2.4187019]
[1747019870798,0.01172924,103770.0,103760.0,2.4187019]
[1747019871219,0.00209329,103770.0,103760.0,2.4187019]
[1747019871630,0.01172924,103770.0,103760.0,2.4187019]
[1747019871851,0.00209329,103770.0,103760.0,2.4187019]
[1747019872085,0.01172915,103770.0,103760.0,2.4187019]
[1747019872300,0.02136519,103770.0,103760.0,2.4187019]
[1747019872711,0.01172915,103770.0,103760.0,2.4187019]
[1747019873140,0.00209329,103770.0,103760.0,2.4187019]
[1747019873993,0.00209329,103770.0,103760.0,2.77646557]
[1747019874895,0.00209329,103770.0,103760.0,2.5314219]
[1747019875104,0.00109329,103770.0,103760.0,2.5314219]
[1747019875517,0.00209329,103770.0,103760.0,2.5314219]
[1747019875737,0.00109329,103770.0,103760.0,2.5304219]
[1747019876156,0.00209329,103770.0,103760.0,2.5344219]
[1747019877454,0.00209329,103770.0,103760.0,2.77946557]
[1747019878084,0.00209329,103770.0,103760.0,2.5344219]
[1747019878989,0.00209329,103770.0,103760.0,2.77946557]
[1747019879456,0.00209329,103770.0,103760.0,2.5344219]
[1747019879654,0.00209329,103770.0,103760.0,2.77946557]
[1747019882245,0.00209329,103770.0,103760.0,2.79400642]
[1747019882453,0.00209329,103770.0,103760.0,2.82750642]
[1747019883963,1e-08,103770.0,103760.0,2.82750642]
[1747019884184,0.002,103790.0,103760.0,2.82750642]
[1747019884185,0.002,103790.0,103780.0,0.08672077]
[1747019884421,0.002,103790.0,103780.0,4.71390344]
[1747019884629,0.002,103790.0,103780.0,4.71197674]
[1747019885104,0.002,103790.0,103780.0,5.11197674]
[1747019885730,0.003,103790.0,103780.0,5.11197674]
[1747019886199,0.003,103790.0,103780.0,5.11297674]
[1747019886813,0.001,103810.0,103800.0,0.10220407]
[1747019887019,0.001,103810.0,103800.0,4.50657011]
[1747019887224,0.001,103810.0,103800.0,4.50840785]
[1747019887432,0.05482625,103820.0,103810.0,0.42669573]
[1747019887641,0.05482625,103820.0,103810.0,4.0328504]
[1747019887876,0.05482625,103820.0,103810.0,4.03661462]
[1747019888628,0.04519439,103820.0,103810.0,4.03661462]
[1747019888862,0.05482625,103820.0,103810.0,4.03661462]
[1747019889478,0.12053211,103830.0,103820.0,0.08668737]
[1747019889632,0.13979352,103830.0,103820.0,2.08836653]
[1747019889834,0.14942455,103830.0,103820.0,2.09213083]
[1747019890093,0.15905567,103830.0,103820.0,2.09213083]
[1747019890299,0.27547686,103830.0,103820.0,2.08249943]
[1747019890505,0.26584639,103830.0,103820.0,2.07286794]
[1747019890722,0.2465847,103830.0,103820.0,2.07286812]
[1747019890891,0.2465847,103830.0,103820.0,1.76160212]
[1747019891303,0.2515847,103830.0,103820.0,1.51755845]
[1747019891619,0.2515847,103830.0,103820.0,1.60560312]
[1747019891821,0.2545847,103830.0,103820.0,1.60560312]
[1747019892366,0.2575847,103830.0,103820.0,1.60660312]
[1747019893013,0.2545847,103830.0,103820.0,1.60560312]
[1747019893211,0.24795367,103830.0,103820.0,1.01394297]
[1747019893414,0.23832255,103830.0,103820.0,0.72665897]
[1747019893965,0.23832255,103830.0,103820.0,0.73629102]
[1747019894805,0.23832255,103830.0,103820.0,0.83766092]
[1747019895653,0.23832255,103830.0,103820.0,1.17766092]
[1747019896235,0.02263038,103830.0,103820.0,1.196924]
[1747019896451,0.04189179,103830.0,103820.0,1.196924]
[1747019896646,0.05152245,103830.0,103820.0,1.196924]
[1747019897178,0.06115339,103830.0,103820.0,1.196924]
[1747019898048,0.06115404,103830.0,103820.0,1.196924]
[1747019898477,0.04189207,103830.0,103820.0,0.94882518]
[1747019898684,0.04189207,103830.0,103820.0,1.1921597]
[1747019898685,0.05152301,103830.0,103820.0,1.1921597]
[1747019898897,0.04189207,103830.0,103820.0,1.1921597]
[1747019899459,0.05152301,103830.0,103820.0,1.1921597]
[1747019900129,0.03226123,103830.0,103820.0,1.1921597]
[1747019900555,0.04189207,103830.0,103820.0,1.5921597]
[1747019900795,0.05152301,103830.0,103820.0,1.5921597]
[1747019901007,0.04189207,103830.0,103820.0,1.5921597]
[1747019902058,0.05152301,103830.0,103820.0,1.5921597]
[1747019903582,0.06692301,103830.0,103820.0,1.5921597]
[1747019905652,0.04766123,103830.0,103820.0,1.5921597]
[1747019905871,0.04766086,103830.0,103820.0,1.5921597]
[1747019906079,0.03226086,103830.0,103820.0,1.5921597]
[1747019906560,0.013,103830.0,103820.0,1.703814]
[1747019906761,0.013,103830.0,103820.0,2.07699767]
[1747019906958,0.013,103830.0,103820.0,1.831954]
[1747019908464,0.01,103830.0,103820.0,1.831954]
[1747019908718,0.002,103830.0,103820.0,1.832954]